[Event "Titled Tuesday Blitz March 14 Late 2023"]
[White "Kozak, Adam"]
[Black "Garcia Pantoja, Roberto"]
[WhiteFideId "753246"]
[BlackFideId "3509265"]
[WhiteElo "2469"]
[BlackElo "2544"]
[Result "0-1"]
[Round "05"]
[TimeControl "180+1"]
[Date "2023.03.14"]
[WhiteClock "0:00:01"]
[BlackClock "0:00:05"]

1. e4 {[%clk 0:02:45]}  c5 {[%clk 0:02:59]} 2. Nf3 {[%clk 0:02:44]}  d6 {[%clk 0:02:59]} 3. d4 {[%clk 0:02:44]}  cxd4 {[%clk 0:03:00]} 4. Nxd4 {[%clk 0:02:44]}  Nf6 {[%clk 0:03:01]} 5. Nc3 {[%clk 0:02:44]}  a6 {[%clk 0:03:01]} 6. Bd2 {[%clk 0:02:44]}  e6 {[%clk 0:02:52]} 7. g4 {[%clk 0:02:42]}  b5 {[%clk 0:02:50]} 8. g5 {[%clk 0:02:42]}  Nfd7 {[%clk 0:02:50]} 9. Qf3 {[%clk 0:02:39]}  Bb7 {[%clk 0:02:49]} 10. a3 {[%clk 0:02:37]}  Nc6 {[%clk 0:02:48]} 11. Nxc6 {[%clk 0:02:35]}  Bxc6 {[%clk 0:02:49]} 12. O-O-O {[%clk 0:02:30]}  Be7 {[%clk 0:02:48]} 13. h4 {[%clk 0:02:29]}  Rb8 {[%clk 0:02:31]} 14. Re1 {[%clk 0:02:26]}  a5 {[%clk 0:02:23]} 15. Nd5 {[%clk 0:02:19]}  exd5 {[%clk 0:02:15]} 16. exd5 {[%clk 0:02:20]}  Ba8 {[%clk 0:02:09]} 17. Qe3 {[%clk 0:02:17]}  Bxd5 {[%clk 0:02:01]} 18. Bxa5 {[%clk 0:02:15]}  Nb6 {[%clk 0:01:52]} 19. Bxb5+ {[%clk 0:02:12]}  Kf8 {[%clk 0:01:48]} 20. Rhg1 {[%clk 0:02:09]}  Be6 {[%clk 0:01:31]} 21. Qd4 {[%clk 0:01:59]}  Qc7 {[%clk 0:01:27]} 22. Bc3 {[%clk 0:01:19]}  Rg8 {[%clk 0:01:25]} 23. Rxe6 {[%clk 0:01:18]}  fxe6 {[%clk 0:01:19]} 24. Qf4+ {[%clk 0:01:17]}  Bf6 {[%clk 0:01:17]} 25. gxf6 {[%clk 0:01:16]}  Nd5 {[%clk 0:01:03]} 26. fxg7+ {[%clk 0:01:12]}  Ke7 {[%clk 0:01:03]} 27. Qg5+ {[%clk 0:01:02]}  Kf7 {[%clk 0:01:01]} 28. Qh5+ {[%clk 0:00:30]}  Ke7 {[%clk 0:01:00]} 29. Bd2 {[%clk 0:00:31]}  Rxb5 {[%clk 0:00:40]} 30. Bg5+ {[%clk 0:00:30]}  Nf6 {[%clk 0:00:40]} 31. Bxf6+ {[%clk 0:00:29]}  Kxf6 {[%clk 0:00:41]} 32. Qxb5 {[%clk 0:00:29]}  Rxg7 {[%clk 0:00:39]} 33. Rxg7 {[%clk 0:00:15]}  Kxg7 {[%clk 0:00:40]} 34. Qg5+ {[%clk 0:00:15]}  Kf7 {[%clk 0:00:39]} 35. Qf4+ {[%clk 0:00:16]}  Kg7 {[%clk 0:00:38]} 36. Qg4+ {[%clk 0:00:15]}  Kf7 {[%clk 0:00:38]} 37. Qf3+ {[%clk 0:00:15]}  Kg7 {[%clk 0:00:36]} 38. Qe4 {[%clk 0:00:16]}  e5 {[%clk 0:00:33]} 39. c4 {[%clk 0:00:13]}  Qc5 {[%clk 0:00:31]} 40. f3 {[%clk 0:00:13]}  Qg1+ {[%clk 0:00:31]} 41. Kc2 {[%clk 0:00:13]}  Qf2+ {[%clk 0:00:31]} 42. Kc3 {[%clk 0:00:13]}  Qf1 {[%clk 0:00:26]} 43. b4 {[%clk 0:00:12]}  Qc1+ {[%clk 0:00:24]} 44. Kb3 {[%clk 0:00:12]}  Qd1+ {[%clk 0:00:25]} 45. Kb2 {[%clk 0:00:12]}  Qd2+ {[%clk 0:00:23]} 46. Qc2 {[%clk 0:00:12]}  Qe3 {[%clk 0:00:22]} 47. Qc3 {[%clk 0:00:12]}  Qe2+ {[%clk 0:00:21]} 48. Kb3 {[%clk 0:00:13]}  Qd1+ {[%clk 0:00:22]} 49. Qc2 {[%clk 0:00:11]}  Qxf3+ {[%clk 0:00:22]} 50. Ka4 {[%clk 0:00:11]}  e4 {[%clk 0:00:22]} 51. c5 {[%clk 0:00:10]}  dxc5 {[%clk 0:00:21]} 52. bxc5 {[%clk 0:00:11]}  e3 {[%clk 0:00:22]} 53. Qc3+ {[%clk 0:00:11]}  Kf7 {[%clk 0:00:20]} 54. Qc4+ {[%clk 0:00:08]}  Ke7 {[%clk 0:00:20]} 55. c6 {[%clk 0:00:07]}  e2 {[%clk 0:00:18]} 56. c7 {[%clk 0:00:08]}  Qa8+ {[%clk 0:00:17]} 57. Kb3 {[%clk 0:00:06]}  Qb7+ {[%clk 0:00:16]} 58. Ka4 {[%clk 0:00:01]}  Qa7+ {[%clk 0:00:13]} 59. Kb3 {[%clk 0:00:01]}  Qe3+ {[%clk 0:00:13]} 60. Ka4 {[%clk 0:00:01]}  e1=Q {[%clk 0:00:12]} 61. c8=Q {[%clk 0:00:01]}  Qa7+ {[%clk 0:00:12]} 62. Q8a6 {[%clk 0:00:02]}  Qd1+ {[%clk 0:00:11]} 63. Ka5 {[%clk 0:00:02]}  Qd8+ {[%clk 0:00:10]} 64. Kb4 {[%clk 0:00:01]}  Qdb8+ {[%clk 0:00:08]} 65. Ka4 {[%clk 0:00:01]}  Qd7+ {[%clk 0:00:08]} 66. Ka5 {[%clk 0:00:01]}  Qbd8+ {[%clk 0:00:07]} 67. Kb4 {[%clk 0:00:01]}  Qd2+ {[%clk 0:00:07]} 68. Ka4 {[%clk 0:00:01]}  Q8d7+ {[%clk 0:00:06]} 69. Qab5 {[%clk 0:00:01]}  Qd1+ {[%clk 0:00:06]} 70. Kb4 {[%clk 0:00:01]}  Q1d2+ {[%clk 0:00:05]} 71. Ka4 {[%clk 0:00:01]}  Qa7+ {[%clk 0:00:05]} 0-1


[Site "https://www.chess.com"]

[Event "Titled Tuesday Blitz March 14 Late 2023"]
[White "Kramnik, Vladimir"]
[Black "Erigaisi Arjun"]
[WhiteFideId "4101588"]
[BlackFideId "35009192"]
[WhiteElo "2712"]
[BlackElo "2737"]
[Result "0-1"]
[Round "05"]
[TimeControl "180+1"]
[Date "2023.03.14"]
[WhiteClock "0:00:02"]
[BlackClock "0:00:20"]

1. c4 {[%clk 0:03:00]}  d6 {[%clk 0:02:58]} 2. d4 {[%clk 0:02:59]}  g6 {[%clk 0:02:58]} 3. Nc3 {[%clk 0:02:57]}  Bg7 {[%clk 0:02:58]} 4. e4 {[%clk 0:02:57]}  Nc6 {[%clk 0:02:56]} 5. Nge2 {[%clk 0:02:54]}  e5 {[%clk 0:02:53]} 6. Be3 {[%clk 0:02:54]}  Nf6 {[%clk 0:02:51]} 7. d5 {[%clk 0:02:50]}  Ne7 {[%clk 0:02:50]} 8. f3 {[%clk 0:02:48]}  c5 {[%clk 0:02:43]} 9. Qd2 {[%clk 0:02:47]}  Nh5 {[%clk 0:02:35]} 10. g4 {[%clk 0:02:45]}  Nf4 {[%clk 0:02:32]} 11. Nxf4 {[%clk 0:02:45]}  exf4 {[%clk 0:02:33]} 12. Bxf4 {[%clk 0:02:45]}  a6 {[%clk 0:02:27]} 13. Be2 {[%clk 0:02:29]}  O-O {[%clk 0:02:21]} 14. O-O {[%clk 0:02:24]}  f5 {[%clk 0:02:19]} 15. Kh1 {[%clk 0:02:20]}  Kh8 {[%clk 0:02:10]} 16. Rae1 {[%clk 0:02:10]}  fxg4 {[%clk 0:02:04]} 17. fxg4 {[%clk 0:02:09]}  Ng8 {[%clk 0:02:04]} 18. g5 {[%clk 0:02:01]}  Bh3 {[%clk 0:01:54]} 19. Rg1 {[%clk 0:01:58]}  Qe7 {[%clk 0:01:49]} 20. Rg3 {[%clk 0:01:47]}  Bd7 {[%clk 0:01:43]} 21. Rf1 {[%clk 0:01:33]}  b5 {[%clk 0:01:37]} 22. b3 {[%clk 0:01:28]}  b4 {[%clk 0:01:36]} 23. Nd1 {[%clk 0:01:19]}  Qxe4+ {[%clk 0:01:34]} 24. Kg1 {[%clk 0:01:05]}  Bd4+ {[%clk 0:01:05]} 25. Be3 {[%clk 0:01:02]}  Be5 {[%clk 0:01:05]} 26. Nf2 {[%clk 0:00:53]}  Qh4 {[%clk 0:01:04]} 27. Kg2 {[%clk 0:00:49]}  Ne7 {[%clk 0:00:59]} 28. Bd3 {[%clk 0:00:29]}  Nf5 {[%clk 0:00:51]} 29. Bxf5 {[%clk 0:00:28]}  Bxf5 {[%clk 0:00:52]} 30. Re1 {[%clk 0:00:22]}  Rae8 {[%clk 0:00:49]} 31. Qd1 {[%clk 0:00:12]}  Kg8 {[%clk 0:00:36]} 32. Bc1 {[%clk 0:00:11]}  Bd7 {[%clk 0:00:24]} 33. Re2 {[%clk 0:00:06]}  Qh5 {[%clk 0:00:20]} 34. Re1 {[%clk 0:00:02]}  Rxf2+ {[%clk 0:00:20]} 0-1


[Site "https://www.chess.com"]

[Event "Titled Tuesday Blitz March 14 Late 2023"]
[White "Kraus, Tomas"]
[Black "Manukian, Artak"]
[WhiteFideId "331708"]
[BlackFideId "13301373"]
[WhiteElo "2389"]
[BlackElo "2130"]
[Result "0-1"]
[Round "05"]
[TimeControl "180+1"]
[Date "2023.03.14"]
[WhiteClock "0:00:02"]
[BlackClock "0:00:08"]

1. e4 {[%clk 0:03:00]}  c6 {[%clk 0:02:59]} 2. d4 {[%clk 0:03:00]}  d5 {[%clk 0:02:59]} 3. f3 {[%clk 0:03:01]}  e6 {[%clk 0:02:59]} 4. Nc3 {[%clk 0:02:57]}  Nf6 {[%clk 0:02:58]} 5. Bg5 {[%clk 0:02:53]}  Be7 {[%clk 0:02:54]} 6. Qd2 {[%clk 0:02:49]}  O-O {[%clk 0:02:50]} 7. O-O-O {[%clk 0:02:49]}  b5 {[%clk 0:02:46]} 8. h4 {[%clk 0:02:43]}  b4 {[%clk 0:02:11]} 9. Nce2 {[%clk 0:02:41]}  dxe4 {[%clk 0:02:09]} 10. Bxf6 {[%clk 0:02:40]}  e3 {[%clk 0:02:04]} 11. Qxe3 {[%clk 0:02:35]}  Bxf6 {[%clk 0:02:04]} 12. g4 {[%clk 0:02:29]}  a5 {[%clk 0:02:01]} 13. g5 {[%clk 0:02:27]}  Be7 {[%clk 0:02:00]} 14. Bh3 {[%clk 0:02:20]}  a4 {[%clk 0:02:00]} 15. f4 {[%clk 0:02:06]}  b3 {[%clk 0:01:53]} 16. a3 {[%clk 0:02:03]}  bxc2 {[%clk 0:01:53]} 17. Kxc2 {[%clk 0:02:03]}  Na6 {[%clk 0:01:38]} 18. Nf3 {[%clk 0:02:01]}  Nc7 {[%clk 0:01:35]} 19. Ne5 {[%clk 0:01:58]}  Nd5 {[%clk 0:01:30]} 20. Qd2 {[%clk 0:01:44]}  Qb6 {[%clk 0:01:28]} 21. Kc1 {[%clk 0:01:12]}  Rb8 {[%clk 0:01:20]} 22. Qc2 {[%clk 0:01:12]}  Ne3 {[%clk 0:01:15]} 23. Qc3 {[%clk 0:01:05]}  Nxd1 {[%clk 0:01:13]} 24. Rxd1 {[%clk 0:01:06]}  Ba6 {[%clk 0:01:08]} 25. Ng3 {[%clk 0:01:02]}  Qb3 {[%clk 0:01:05]} 26. Ne4 {[%clk 0:00:30]}  Qxc3+ {[%clk 0:00:34]} 27. Nxc3 {[%clk 0:00:31]}  Bb5 {[%clk 0:00:33]} 28. h5 {[%clk 0:00:29]}  g6 {[%clk 0:00:29]} 29. hxg6 {[%clk 0:00:28]}  hxg6 {[%clk 0:00:29]} 30. Bg2 {[%clk 0:00:23]}  Rbc8 {[%clk 0:00:27]} 31. Rh1 {[%clk 0:00:22]}  Kg7 {[%clk 0:00:27]} 32. Rh6 {[%clk 0:00:14]}  Rh8 {[%clk 0:00:26]} 33. Ng4 {[%clk 0:00:14]}  Rxh6 {[%clk 0:00:25]} 34. gxh6+ {[%clk 0:00:14]}  Kh7 {[%clk 0:00:23]} 35. Ne4 {[%clk 0:00:15]}  Bd3 {[%clk 0:00:21]} 36. Ng5+ {[%clk 0:00:14]}  Bxg5 {[%clk 0:00:20]} 37. fxg5 {[%clk 0:00:15]}  c5 {[%clk 0:00:18]} 38. Kd2 {[%clk 0:00:15]}  Bf5 {[%clk 0:00:17]} 39. Nf6+ {[%clk 0:00:13]}  Kh8 {[%clk 0:00:18]} 40. dxc5 {[%clk 0:00:12]}  Rxc5 {[%clk 0:00:19]} 41. Be4 {[%clk 0:00:08]}  Bxe4 {[%clk 0:00:16]} 42. Nxe4 {[%clk 0:00:09]}  Rb5 {[%clk 0:00:15]} 43. Kc3 {[%clk 0:00:09]}  Re5 {[%clk 0:00:15]} 44. Kd4 {[%clk 0:00:09]}  Rd5+ {[%clk 0:00:15]} 45. Ke3 {[%clk 0:00:08]}  Rb5 {[%clk 0:00:14]} 46. Nd6 {[%clk 0:00:08]}  Rxb2 {[%clk 0:00:12]} 47. Nxf7+ {[%clk 0:00:08]}  Kh7 {[%clk 0:00:13]} 48. Nd8 {[%clk 0:00:06]}  Rb3+ {[%clk 0:00:12]} 49. Ke4 {[%clk 0:00:06]}  Rxa3 {[%clk 0:00:13]} 50. Nxe6 {[%clk 0:00:07]}  Ra1 {[%clk 0:00:11]} 51. Nf8+ {[%clk 0:00:07]}  Kg8 {[%clk 0:00:10]} 52. Nxg6 {[%clk 0:00:07]}  Rh1 {[%clk 0:00:10]} 53. Kd3 {[%clk 0:00:07]}  a3 {[%clk 0:00:09]} 54. Ne7+ {[%clk 0:00:05]}  Kf7 {[%clk 0:00:09]} 55. g6+ {[%clk 0:00:04]}  Kxe7 {[%clk 0:00:09]} 56. h7 {[%clk 0:00:02]}  Kf6 {[%clk 0:00:09]} 57. Kc3 {[%clk 0:00:01]}  Rh2 {[%clk 0:00:08]} 58. Kb3 {[%clk 0:00:01]}  a2 {[%clk 0:00:08]} 59. h8=Q+ {[%clk 0:00:02]}  Rxh8 {[%clk 0:00:08]} 60. Kxa2 {[%clk 0:00:02]}  Kxg6 {[%clk 0:00:08]} 0-1


[Site "https://www.chess.com"]

[Event "Titled Tuesday Blitz March 14 Late 2023"]
[White "Lorenzo De La Riva, Lazaro"]
[Black "Sattarov, Bobir"]
[WhiteFideId "2268809"]
[BlackFideId "14203081"]
[WhiteElo "2294"]
[BlackElo "2351"]
[Result "0-1"]
[Round "05"]
[TimeControl "180+1"]
[Date "2023.03.14"]
[WhiteClock "0:00:06"]
[BlackClock "0:00:07"]

1. d4 {[%clk 0:02:57]}  Nf6 {[%clk 0:02:59]} 2. Nf3 {[%clk 0:02:58]}  d5 {[%clk 0:02:59]} 3. e3 {[%clk 0:02:58]}  c5 {[%clk 0:02:56]} 4. Bd3 {[%clk 0:02:52]}  Nc6 {[%clk 0:02:55]} 5. b3 {[%clk 0:02:50]}  cxd4 {[%clk 0:02:54]} 6. exd4 {[%clk 0:02:47]}  Bg4 {[%clk 0:02:54]} 7. Bb2 {[%clk 0:02:46]}  e6 {[%clk 0:02:53]} 8. h3 {[%clk 0:02:43]}  Bh5 {[%clk 0:02:51]} 9. O-O {[%clk 0:02:41]}  Bd6 {[%clk 0:02:50]} 10. Nbd2 {[%clk 0:02:39]}  O-O {[%clk 0:02:50]} 11. Re1 {[%clk 0:02:38]}  Rc8 {[%clk 0:02:48]} 12. a3 {[%clk 0:02:37]}  Bb8 {[%clk 0:02:43]} 13. Qe2 {[%clk 0:02:33]}  Re8 {[%clk 0:02:36]} 14. Qe3 {[%clk 0:02:12]}  Qc7 {[%clk 0:02:31]} 15. g3 {[%clk 0:02:03]}  Bg6 {[%clk 0:02:29]} 16. Bxg6 {[%clk 0:01:51]}  hxg6 {[%clk 0:02:30]} 17. Rac1 {[%clk 0:01:49]}  b5 {[%clk 0:02:27]} 18. Ne5 {[%clk 0:01:45]}  Nxe5 {[%clk 0:02:26]} 19. dxe5 {[%clk 0:01:46]}  Nd7 {[%clk 0:02:23]} 20. Nf3 {[%clk 0:01:46]}  a6 {[%clk 0:02:19]} 21. Qf4 {[%clk 0:01:46]}  Ba7 {[%clk 0:02:16]} 22. Kg2 {[%clk 0:01:45]}  Qb7 {[%clk 0:02:06]} 23. Re2 {[%clk 0:01:34]}  Rc6 {[%clk 0:02:03]} 24. Rd1 {[%clk 0:01:31]}  Rec8 {[%clk 0:02:02]} 25. Rdd2 {[%clk 0:01:31]}  Nf8 {[%clk 0:02:00]} 26. h4 {[%clk 0:01:30]}  a5 {[%clk 0:01:58]} 27. Qg4 {[%clk 0:01:24]}  a4 {[%clk 0:01:55]} 28. h5 {[%clk 0:01:22]}  gxh5 {[%clk 0:01:54]} 29. Qxh5 {[%clk 0:01:21]}  Ng6 {[%clk 0:01:52]} 30. Ng5 {[%clk 0:01:19]}  axb3 {[%clk 0:01:49]} 31. cxb3 {[%clk 0:01:18]}  d4 {[%clk 0:01:39]} 32. f3 {[%clk 0:01:17]}  Rd8 {[%clk 0:01:21]} 33. Rd3 {[%clk 0:01:06]}  b4 {[%clk 0:01:13]} 34. a4 {[%clk 0:01:01]}  Qa6 {[%clk 0:01:00]} 35. Red2 {[%clk 0:00:55]}  Rd5 {[%clk 0:00:38]} 36. f4 {[%clk 0:00:51]}  Rc3 {[%clk 0:00:35]} 37. Qf3 {[%clk 0:00:34]}  Qc6 {[%clk 0:00:30]} 38. Bxc3 {[%clk 0:00:22]}  bxc3 {[%clk 0:00:29]} 39. Rc2 {[%clk 0:00:22]}  Qb6 {[%clk 0:00:25]} 40. f5 {[%clk 0:00:16]}  Nxe5 {[%clk 0:00:20]} 41. Qh5 {[%clk 0:00:16]}  exf5 {[%clk 0:00:17]} 42. Qh7+ {[%clk 0:00:14]}  Kf8 {[%clk 0:00:18]} 43. Qh8+ {[%clk 0:00:15]}  Ke7 {[%clk 0:00:18]} 44. Qxg7 {[%clk 0:00:16]}  Qg6 {[%clk 0:00:16]} 45. Qxg6 {[%clk 0:00:15]}  fxg6 {[%clk 0:00:16]} 46. Rd1 {[%clk 0:00:14]}  Ng4 {[%clk 0:00:08]} 47. Re2+ {[%clk 0:00:10]}  Kf6 {[%clk 0:00:07]} 48. Kf3 {[%clk 0:00:09]}  Kxg5 {[%clk 0:00:07]} 49. Rd3 {[%clk 0:00:06]}  Ne5+ {[%clk 0:00:07]} 0-1


[Site "https://www.chess.com"]

[Event "Titled Tuesday Blitz March 14 Late 2023"]
[White "Mahdavi, Reza"]
[Black "Deviprasath, Sharvesh"]
[WhiteFideId "12595926"]
[BlackFideId "30938228"]
[WhiteElo "2208"]
[BlackElo "2168"]
[Result "1-0"]
[Round "05"]
[TimeControl "180+1"]
[Date "2023.03.14"]
[WhiteClock "0:00:25"]
[BlackClock "0:00:11"]

1. Nf3 {[%clk 0:02:56]}  g6 {[%clk 0:02:56]} 2. d4 {[%clk 0:02:51]}  Bg7 {[%clk 0:02:55]} 3. g3 {[%clk 0:02:51]}  d6 {[%clk 0:02:56]} 4. b3 {[%clk 0:02:50]}  Nf6 {[%clk 0:02:55]} 5. Bb2 {[%clk 0:02:51]}  O-O {[%clk 0:02:55]} 6. Bg2 {[%clk 0:02:52]}  a5 {[%clk 0:02:56]} 7. O-O {[%clk 0:02:50]}  a4 {[%clk 0:02:49]} 8. c4 {[%clk 0:02:50]}  c6 {[%clk 0:02:26]} 9. Nc3 {[%clk 0:02:48]}  a3 {[%clk 0:02:23]} 10. Bc1 {[%clk 0:02:47]}  Qa5 {[%clk 0:02:24]} 11. Bd2 {[%clk 0:02:44]}  Qh5 {[%clk 0:02:24]} 12. h4 {[%clk 0:02:37]}  Nbd7 {[%clk 0:02:17]} 13. e4 {[%clk 0:02:23]}  e5 {[%clk 0:01:48]} 14. d5 {[%clk 0:01:53]}  c5 {[%clk 0:01:31]} 15. Ng5 {[%clk 0:01:37]}  h6 {[%clk 0:01:21]} 16. Bf3 {[%clk 0:01:35]}  hxg5 {[%clk 0:00:52]} 17. Bxh5 {[%clk 0:01:34]}  Nxh5 {[%clk 0:00:53]} 18. hxg5 {[%clk 0:01:29]}  f6 {[%clk 0:00:51]} 19. Nb5 {[%clk 0:01:29]}  Ra6 {[%clk 0:00:48]} 20. Nc7 {[%clk 0:01:29]}  Ra7 {[%clk 0:00:46]} 21. Ne6 {[%clk 0:01:28]}  Re8 {[%clk 0:00:46]} 22. Kg2 {[%clk 0:01:17]}  fxg5 {[%clk 0:00:42]} 23. Bxg5 {[%clk 0:01:15]}  b6 {[%clk 0:00:40]} 24. Qe2 {[%clk 0:01:11]}  Nf8 {[%clk 0:00:37]} 25. Nxg7 {[%clk 0:01:08]}  Kxg7 {[%clk 0:00:37]} 26. Rh1 {[%clk 0:01:07]}  Nh7 {[%clk 0:00:32]} 27. Be3 {[%clk 0:01:03]}  Rf7 {[%clk 0:00:28]} 28. Rh4 {[%clk 0:01:01]}  Ref8 {[%clk 0:00:25]} 29. Rah1 {[%clk 0:01:01]}  N7f6 {[%clk 0:00:22]} 30. Bc1 {[%clk 0:00:56]}  Ng4 {[%clk 0:00:20]} 31. f3 {[%clk 0:00:34]}  Ngf6 {[%clk 0:00:20]} 32. Bxa3 {[%clk 0:00:29]}  Nh7 {[%clk 0:00:16]} 33. Bc1 {[%clk 0:00:29]}  b5 {[%clk 0:00:13]} 34. cxb5 {[%clk 0:00:28]}  Bd7 {[%clk 0:00:13]} 35. a4 {[%clk 0:00:28]}  Rxf3 {[%clk 0:00:12]} 36. Qxf3 {[%clk 0:00:28]}  Rxf3 {[%clk 0:00:12]} 37. Kxf3 {[%clk 0:00:29]}  N5f6 {[%clk 0:00:12]} 38. Rxh7+ {[%clk 0:00:23]}  Nxh7 {[%clk 0:00:12]} 39. Rxh7+ {[%clk 0:00:24]}  Kxh7 {[%clk 0:00:13]} 40. b6 {[%clk 0:00:24]}  Bc8 {[%clk 0:00:12]} 41. Bg5 {[%clk 0:00:25]}  Ba6 {[%clk 0:00:11]} 42. Be7 {[%clk 0:00:25]} 1-0


[Site "https://www.chess.com"]

[Event "Titled Tuesday Blitz March 14 Late 2023"]
[White "Manelyuk, Daniil"]
[Black "Fedoseev, Vladimir"]
[WhiteFideId "44173920"]
[BlackFideId "24130737"]
[WhiteElo "2259"]
[BlackElo "2752"]
[Result "1-0"]
[Round "05"]
[TimeControl "180+1"]
[Date "2023.03.14"]
[WhiteClock "0:00:07"]
[BlackClock "0:00:04"]

1. e4 {[%clk 0:02:49]}  Nc6 {[%clk 0:02:54]} 2. Nf3 {[%clk 0:02:47]}  Nf6 {[%clk 0:02:51]} 3. Nc3 {[%clk 0:02:42]}  d6 {[%clk 0:02:50]} 4. d4 {[%clk 0:02:38]}  g6 {[%clk 0:02:48]} 5. Be3 {[%clk 0:02:38]}  Bg7 {[%clk 0:02:45]} 6. Qd2 {[%clk 0:02:38]}  Ng4 {[%clk 0:02:45]} 7. Bg5 {[%clk 0:02:34]}  h6 {[%clk 0:02:44]} 8. Bh4 {[%clk 0:02:33]}  g5 {[%clk 0:02:42]} 9. Bg3 {[%clk 0:02:33]}  e5 {[%clk 0:02:42]} 10. d5 {[%clk 0:02:31]}  Ne7 {[%clk 0:02:39]} 11. h3 {[%clk 0:02:26]}  Nf6 {[%clk 0:02:39]} 12. O-O-O {[%clk 0:02:26]}  Ng6 {[%clk 0:02:37]} 13. h4 {[%clk 0:02:19]}  Nh5 {[%clk 0:02:31]} 14. hxg5 {[%clk 0:01:56]}  Nxg3 {[%clk 0:02:24]} 15. fxg3 {[%clk 0:01:55]}  hxg5 {[%clk 0:02:20]} 16. Bb5+ {[%clk 0:01:50]}  Bd7 {[%clk 0:02:11]} 17. Bxd7+ {[%clk 0:01:49]}  Kxd7 {[%clk 0:02:10]} 18. Nxg5 {[%clk 0:01:30]}  Qe7 {[%clk 0:02:06]} 19. Nf3 {[%clk 0:01:22]}  a6 {[%clk 0:02:01]} 20. Kb1 {[%clk 0:01:22]}  Raf8 {[%clk 0:01:59]} 21. g4 {[%clk 0:01:15]}  Kc8 {[%clk 0:01:58]} 22. Ne2 {[%clk 0:01:15]}  Qd7 {[%clk 0:01:56]} 23. g5 {[%clk 0:01:07]}  Qg4 {[%clk 0:01:55]} 24. Qe3 {[%clk 0:01:00]}  Qxg2 {[%clk 0:01:48]} 25. Rhg1 {[%clk 0:00:59]}  Qh3 {[%clk 0:01:48]} 26. Ng3 {[%clk 0:00:57]}  Kb8 {[%clk 0:01:41]} 27. Nf5 {[%clk 0:00:56]}  Rfg8 {[%clk 0:01:40]} 28. Rg3 {[%clk 0:00:52]}  Qh5 {[%clk 0:01:37]} 29. Rd3 {[%clk 0:00:35]}  Bf8 {[%clk 0:01:27]} 30. a4 {[%clk 0:00:32]}  Ne7 {[%clk 0:01:20]} 31. Rb3 {[%clk 0:00:26]}  Qh1+ {[%clk 0:01:04]} 32. Rg1 {[%clk 0:00:23]}  Qh3 {[%clk 0:01:05]} 33. Qe2 {[%clk 0:00:20]}  Nxd5 {[%clk 0:00:19]} 34. exd5 {[%clk 0:00:04]}  Qxf5 {[%clk 0:00:19]} 35. Qxa6 {[%clk 0:00:04]}  Qc8 {[%clk 0:00:19]} 36. a5 {[%clk 0:00:03]}  Rh3 {[%clk 0:00:12]} 37. Qb5 {[%clk 0:00:03]}  e4 {[%clk 0:00:11]} 38. Nd2 {[%clk 0:00:03]}  Rxb3 {[%clk 0:00:11]} 39. Nxb3 {[%clk 0:00:02]}  Be7 {[%clk 0:00:11]} 40. Nd4 {[%clk 0:00:02]}  Ka8 {[%clk 0:00:09]} 41. a6 {[%clk 0:00:03]}  bxa6 {[%clk 0:00:09]} 42. Qa4 {[%clk 0:00:03]}  Rxg5 {[%clk 0:00:08]} 43. Rxg5 {[%clk 0:00:03]}  Bxg5 {[%clk 0:00:09]} 44. Nc6 {[%clk 0:00:03]}  f5 {[%clk 0:00:09]} 45. Qd4 {[%clk 0:00:03]}  Qb8 {[%clk 0:00:03]} 46. Nxb8 {[%clk 0:00:03]}  Kxb8 {[%clk 0:00:04]} 47. Qh8+ {[%clk 0:00:03]}  Kb7 {[%clk 0:00:04]} 48. Qg7 {[%clk 0:00:04]}  Bd2 {[%clk 0:00:04]} 49. Qg6 {[%clk 0:00:04]}  e3 {[%clk 0:00:05]} 50. Qg2 {[%clk 0:00:04]}  f4 {[%clk 0:00:05]} 51. c3 {[%clk 0:00:04]}  Kb6 {[%clk 0:00:05]} 52. Kc2 {[%clk 0:00:05]}  a5 {[%clk 0:00:06]} 53. Kd3 {[%clk 0:00:05]}  Bc1 {[%clk 0:00:06]} 54. b3 {[%clk 0:00:05]}  a4 {[%clk 0:00:06]} 55. bxa4 {[%clk 0:00:05]}  Ka5 {[%clk 0:00:06]} 56. Qe4 {[%clk 0:00:05]}  e2 {[%clk 0:00:02]} 57. Kxe2 {[%clk 0:00:05]}  Be3 {[%clk 0:00:03]} 58. Qb4+ {[%clk 0:00:05]}  Ka6 {[%clk 0:00:03]} 59. Qb5+ {[%clk 0:00:06]}  Ka7 {[%clk 0:00:04]} 60. a5 {[%clk 0:00:06]}  f3+ {[%clk 0:00:04]} 61. Kxe3 {[%clk 0:00:06]}  f2 {[%clk 0:00:04]} 62. Kxf2 {[%clk 0:00:07]} 1-0


[Site "https://www.chess.com"]